Cogmind - Beta 10.2 @@@ ROGUE MODE // 2022.01.12 @ 21:35:32 Player: albenzo Result: Destroyed by G-47 Trooper with Particle Gun Performance ------------- Evolutions (0) 0 Regions Visited (1) 200 Robots Destroyed (6) 30 Value Destroyed (184) 184 Prototype IDs (0) 0 Alien Tech Used (0) 0 Bonus (0) 0 TOTAL SCORE: 414 Bonus ------- None Cogmind --------- Core Integrity 0/250 Matter 300/300 Energy 100/100 System Corruption 0% Temperature Cool (9) Movement Walking (210) Ox3 Location -10/Materials Parts ------- > --- POWER (1) -------- (None) > --- PROPULSION (2) --- Aluminum Leg > --- UTILITY (2) ------ High-capacity Storage Unit Signal Interpreter > --- WEAPON (2) ------- (None) > --- INVENTORY (12) --- Light Ion Engine Light Treads Aluminum Leg High-capacity Battery (400) High-capacity Matter Pod (200) Peak State ------------ > --- POWER ------------ Light Ion Engine > --- PROPULSION ------- Aluminum Leg Aluminum Leg > --- UTILITY ---------- Small Storage Unit High-capacity Matter Pod > --- WEAPON ----------- Small Laser Particle Gun > --- INVENTORY -------- Light Ion Engine Light Treads Aluminum Leg Compact Wheel High-capacity Matter Pod High-capacity Matter Pod [Rating: 8] Favorites ----------- Power Ion Engine Engine Ion Engine Propulsion Aluminum Leg Leg Aluminum Leg Utility Small Storage Unit Storage Small Storage Unit Processor Signal Interpreter Weapon Small Laser Energy Gun Small Laser Ballistic Gun Light Assault Rifle Special Melee Weapon Datajack Build | -11 -10 ------- Run | Scr Mat Slots Evolved . | . . Power . | . . Propulsion . | . . Utility . | . . Weapon . | . . Parts Attached 17 | 7 10 Power 2 | 1 1 Engine 2 | 1 1 Core . | . . Reactor . | . . Propulsion 3 | 2 1 Treads . | . . Leg 3 | 2 1 Wheel . | . . Hover . | . . Flight . | . . Utility 5 | 1 4 Device . | . . Storage 4 | 1 3 Processor 1 | . 1 Hackware . | . . Protection . | . . Artifact . | . . Weapon 7 | 3 4 Energy Gun 5 | 2 3 Energy Cannon . | . . Ballistic Gun 1 | 1 . Ballistic Cannon . | . . Launcher . | . . Special Weapon . | . . Impact Weapon . | . . Slashing Weapon . | . . Piercing Weapon . | . . Special Melee Weapon 1 | . 1 Unidentified Prototypes . | . . Parts Lost 7 | . 7 Power 1 | . 1 Propulsion 2 | . 2 Utility . | . . Weapon 4 | . 4 Highest Loss Streak 4 | . 4 Average Slot Usage (%) 96 | . 96 Engine 13 | . 13 Leg 27 | . 27 Storage 24 | . 24 Processor 3 | . 3 Energy Gun 24 | . 24 Special Melee Weapon 1 | . 1 Naked Turns . | . . Heaviest Build 45 | 9 45 Greatest Support 20 | 20 20 Greatest Overweight (x) 3 | 1 3 Average Overweight (x) . | . . Largest Inventory Capacity 12 | 6 12 Average Capacity 8 | 5 8 Most Carried 7 | 6 7 Average Carried 5 | 4 5 Final Capacity 12 | 6 12 Final Carried 6 | 6 5 Class Distribution -------------------- 100% | Mutant Dominant Class ---------------- Mutant | -10/Materials Resources | -11 -10 ----------- Run | Scr Mat Matter Collected 548 | 223 325 Remotely . | . . Salvage Created 228 | . 228 Parts 12 | . 12 Haulers Intercepted . | . . Recyclers Shooed . | . . Parts Field Recycled . | . . Retrieved Matter . | . . Parts Self-Destructed . | . . Prevented . | . . Kills | -11 -10 ------- Run | Scr Mat Combat Hostiles Destroyed 5 | . 5 Guns 5 | . 5 Classes Destroyed 2 | . 2 Worker 1 | . 1 Grunt 5 | . 5 Best Kill Streak 3 | . 3 Combat Bots Only 3 | . 3 Max Kills in Single Turn 1 | . 1 Gunslinging . | . . Exploded . | . . Melee . | . . Uniques/NPCs Destroyed . | . . Combat | -11 -10 -------- Run | Scr Mat Damage Taken 875 | . 875 Core 259 | . 259 Absorbed by Shields . | . . Core Remaining (%) 100 | 100 . Volleys Fired 34 | . 34 Largest 2 | . 2 Hottest 105 | . 105 Shots Fired 50 | . 50 Gun 50 | . 50 Cannon . | . . Launcher . | . . Special . | . . Kinetic . | . . Thermal 50 | . 50 Explosive . | . . Electromagnetic . | . . Robot Hit Streak 8 | . 8 Robot Miss Streak 2 | . 2 Penetration Max . | . . Secondary Targets 1 | . 1 Max Gunslinging Chain 1 | . 1 Shots Hit Robots 42 | . 42 Core Hits 15 | . 15 Critical Hits . | . . Critical Kills . | . . Critical Parts Destroyed . | . . Melee Attacks 6 | . 6 Impact . | . . Slashing . | . . Piercing . | . . Sneak Attacks 1 | . 1 Combat Hostiles . | . . Follow-up Attacks . | . . Damage Inflicted 425 | . 425 Guns 423 | . 423 Cannons . | . . Explosions . | . . Melee . | . . Ramming 2 | . 2 Kinetic . | . . Thermal 423 | . 423 Explosive . | . . Electromagnetic . | . . Impact . | . . Slashing . | . . Piercing . | . . Highest Corruption . | . . Average Corruption . | . . Corruption Purged . | . . Overload Shots . | . . Overflow Damage . | . . Projectiles . | . . Explosions . | . . Melee . | . . Knockbacks . | . . Impact . | . . Kinetic . | . . Secondary . | . . Self-Inflicted Damage 1 | . 1 Shots . | . . Rammed 1 | . 1 Targets Rammed 1 | . 1 Kicked . | . . Crushed . | . . Highest Temperature 397 | . 397 Average Temperature 151 | . 151 Received Heat Transfer 492 | . 492 Effects 1 | . 1 Damage (minor) 1 | . 1 Siege Activations . | . . Robots Corrupted . | . . Combat Hostiles . | . . Parts Fried . | . . Impact Corruptions . | . . Robots Melted . | . . Combat Hostiles . | . . Parts Melted 1 | . 1 Heat Transferred 973 | . 973 Parts Sabotaged . | . . Parts Stolen . | . . Parts Stripped . | . . Power Chain Reactions . | . . Missiles Intercepted . | . . Alert | -11 -10 ------- Run | Scr Mat Peak Influence 75 | . 75 Initial . | . . Average 31 | . 36 Maximum Alert Level . | . . Low Security (%) 100 | 100 100 Level 1 . | . . Level 2 . | . . Level 3 . | . . Level 4 . | . . Level 5 . | . . High Security . | . . Max Security . | . . Squads Dispatched 1 | . 1 Investigation . | . . Extermination . | . . Reinforcement 1 | . 1 Assault . | . . Garrison . | . . Intercept . | . . Construction Impeded . | . . Haulers Reinforced . | . . Stealth | -11 -10 --------- Run | Scr Mat Distress Signals 2 | . 2 Communications Jammed . | . . Distress Signals . | . . Times Spotted 13 | . 13 Peak Tracking Total 6 | . 6 Tactical Retreats 1 | . 1 Traps | -11 -10 ------- Run | Scr Mat Traps Triggered . | . . Indirectly . | . . Trap Hack Attempts . | . . Triggered . | . . Disarmed . | . . Reprogrammed . | . . Reused . | . . Traps Extracted . | . . Installed . | . . Triggered . | . . Machines | -11 -10 ---------- Run | Scr Mat Machines Disabled . | . . Max in Single Turn . | . . Machines Sabotaged . | . . Garrisons Compromised . | . . Overloaded Fab Kills . | . . Fab Network Shutdowns . | . . Hacking | -11 -10 --------- Run | Scr Mat Machines Accessed 3 | . 3 Terminals 3 | . 3 Fabricators . | . . Repair Stations . | . . Recycling Units . | . . Scanalyzers . | . . Garrison Access . | . . Total Hacks 7 | . 7 Successful 2 | . 2 Failed 5 | . 5 Catastrophic . | . . Database Lockouts . | . . Manual 3 | . 3 Terminals 7 | . 7 Fabricators . | . . Repair Stations . | . . Recycling Units . | . . Scanalyzers . | . . Garrison Access . | . . Terminal Hacks 2 | . 2 Robot Analysis 2 | . 2 Fabricator Hacks . | . . Repair Station Hacks . | . . Recycling Unit Hacks . | . . Scanalyzer . | . . Garrison Access Hacks . | . . Unauthorized Hacks . | . . Terminals . | . . Fabricators . | . . Repair Stations . | . . Recycling Units . | . . Scanalyzers . | . . Garrison Access . | . . Data Cores Recovered . | . . Used . | . . Hacking Detections 3 | . 3 Full Trace Events . | . . Feedback Events . | . . Feedback Blocked . | . . Robot Schematics Acquired . | . . Robots Built . | . . Matter . | . . Time . | . . Total Robot Build Rating . | . . Part Schematics Acquired . | . . Parts Built . | . . Matter . | . . Time . | . . Total Part Build Rating . | . . Parts Repaired . | . . Time . | . . Parts Recycled . | . . Recycled Matter . | . . Retrieved Matter . | . . Retrieved Components . | . . Parts Scanalyzed . | . . Part Schematics Acquired . | . . Parts Damaged . | . . Bothacking | -11 -10 ------------ Run | Scr Mat Used RIF Installer . | . . Robots Hacked 2 | . 2 Non-combat 1 | . 1 Combat 1 | . 1 Robot Hacks Applied 3 | . 3 parse_system 2 | . 2 find_recycling 1 | . 1 Relay Couplers Released . | . . Robots Rewired . | . . Allies Hacked . | . . Hacks Repelled . | . . Allies | -11 -10 -------- Run | Scr Mat Total Allies . | . . Largest Group . | . . Highest-Rated Group . | . . Highest-Rated Ally . | . . Total Orders . | . . Ally Attacks . | . . Total Damage . | . . Kills . | . . Allies Corrupted . | . . Allies Melted . | . . Intel | -11 -10 ------- Run | Scr Mat Robot Analysis Total 2 | . 2 Derelict Logs Recovered . | . . Drone Launches . | . . Drone Recoveries . | . . Exploration | -11 -10 ------------- Run | Scr Mat Turns Passed 649 | 85 564 Spaces Moved 325 | 61 264 Core 7 | 7 . Treads . | . . Legs 318 | 54 264 Wheels . | . . Hover . | . . Flight . | . . Fastest Speed 50 | 50 120 Average Speed 132 | 113 137 Slowest Speed 210 | 120 210 Overloaded Moves . | . . Propulsion Burnouts . | . . Robots Hopped . | . . Cave-ins Triggered . | . . Exploration Rate (%) 26 | 4 49 Regions Visited 1 Branch Regions . Pre-discovered Areas . | . . Known Exits Taken . | . . Unknown Exits Taken 1 | 1 . Scrap Searched . | . . Spaces Dug . | . . Terrain Destroyed . | . . Melee . | . . Projectile . | . . AOE . | . . Terrain Rammed . | . . Walls Destroyed . | . . Machines Disabled . | . . Actions | -11 -10 --------- Run | Scr Mat Total 488 | 73 415 Wait 79 | . 79 Move 324 | 60 264 Hop . | . . Pick Up 14 | 6 8 Fast Attach 9 | 6 3 Attach 3 | . 3 Detach 1 | . 1 Swap 5 | 1 4 Drop 12 | . 12 Fire 34 | . 34 Melee 6 | . 6 Ram . | . . Kick 1 | . 1 Crush . | . . Escape Stasis . | . . Rewire . | . . Trap . | . . Miscellaneous . | . . Route ------- -11/Scrapyard -10/Materials (discovered 1 exit: [*Mat]) History --------- Turn | Location | Event 22 | -11/Scrapyard | Discovered new exit (range 16) 86 | -11/Scrapyard | Entered Materials 307 | -10/Materials | Build established: Mutant 439 | -10/Materials | Discovered new exit (range 10) 554 | -10/Materials | Core integrity fell below 50% 592 | -10/Materials | Lost 3 parts (1n2w) 621 | -10/Materials | Core integrity fell below 20% 650 | -10/Materials | Destroyed by G-47 Trooper with Particle Gun Last Messages --------------- 00619_ R-06 Scavenger inserts Aluminum Leg into recycling unit. 00622_ Jacked G-47 Trooper... >>parse_system Reading system data... 00624_ Jacked G-47 Trooper... 00624_ Command string: trojan(assimilate) 00624_ No effect. 00626_ R-06 Scavenger collects Lgt. Ion Engine. 00628_ Sneak attack on R-06 Scavenger. 00628_ Jacked R-06 Scavenger... >>find_recycling Pinpointed nearest Recycling Unit: (33,26) (already known). 00630_ R-06 Scavenger collects Med. Matter Pod. 00632_ Datajack destroyed. 00634_ Ion Engine destroyed. 00639_ R-06 Scavenger inserts Lgt. Ion Engine into recycling unit. 00640_ Recycling unit begins recycling process. 00642_ R-06 Scavenger inserts Med. Matter Pod into recycling unit. 00642_ Acquired 81 matter. 00649_ Slammed into G-47 Trooper. Map ----- +----------------------------------------------------+ | | | | | | | ?????????????#############???????????????????????? | | ?????????????# #??????????????????????? | | ?????????????# """ """ #??????????????????????? | | ?????????????# """ """ #??????????????????????? | | ?????????????# """ """ #??????????????????????? | | ?????????????# #??????????????????????? | | ????????#############+########### #??????????????? | | ????????# ???????????? | | ????????# < ???????????? | | ????????# ???????????? | | ????????### ######################?????????????? | | ??????????# #??????????????????????????????????? | | ??????????# #??????????????????????????????????? | | ?????????## ##???#######?????#####?????????????? | | ?????????# ##### ##### #?????????????? | | ########## ^ #?????????????? | | ## T T #?????????????? | | """ ## ^^ #?????????????? | | """ ## ##### % ##### ??????????????? | | """ ### ##???###+########???#??????????????? | | #?# #??????# # ???????????????? | | #?# #??????#%% """ + +??????????????? | | #?# #??????# @""" # ???????????????? | | ### ##?????# g """ #??????????????????? | | ##/####+## #?????# #??????????????????? | | ?# #?????# r a ?????????????????? | | ## #?????# w "Y" # ???????????????? | | #?????#= """ #? #??????????????? | | ##+####+## #?????# #?? ???????????????? | | # #######?##############??????????????????? | | # #?????? ?????????????????????????????? | | # #????? ?????????????????????????????? | | # #???? """ "?????????????????????????????? | | # ##### """ "?????????????????????????????? | | # | + + """ "?????????????????????????????? | | # ### # ??????????????????????????? | | # #?# #####+####+##???????????????????????? | | # #?# #???????????????????????? | | ##+##+####?# #???????????????????????? | | #????# #?????????#?????????????? | | #???####+####### #???????? #?????????????? | | #???# ## ##????? #??????????????? | | #???# """"""" # ##### #??????????????? | | #???# """"""" # #??????????????? | | #???# """"""" + #??????????????? | | #???# """"""" # #??????????????? | | #####+##### """"""" # ##+####????????????????? | +----------------------------------------------------+ Best States ------------- Heat Dissipation 25 Energy Generation 10 Energy Capacity 650 Matter Stores 313 Matter Capacity 500 Sight Range 16 Terrain Scan Density 10 Evasion (%) 40 Item Schematics ----------------- None Robot Schematics ------------------ None Fabricated ------------ Nothing Alien Tech Used ----------------- None Achievements -------------- None Challenges ------------ None Game ------ Seed AlphaSuperchargedVibroblade Manual? 0 Play Time 00:07:57 Cumulative 16.0 hours Start 2022.01.12 @ 21:26:46 End 2022.01.12 @ 21:35:32 Sessions 1 Manual Loads 0 Difficulty Rogue Special Mode None Game No. 14 Rogue 14 Adventurer 0 Explorer 0 Win Type - Total 0 Types 0/0/0/0/0/0/0/0/0 Lore% 36 Gallery% 28 Achievement% 35 Wizard Run 0 Options --------- ASCII 0 Keyboard 1 Movement Vi Keybinds 0 Fullscreen 2 Font 24/Proggy Map View 76x50 Tactical HUD 1 Map Filters NONE Filters NONE Steam 1 RUN: fe8f8f4a-d76e-459b-9b45-52a290fbe459